Cogmind - Beta 15 @@@ ROGUE MODE // 2025.05.25 @ 19:29:53 Player: Demo Result: Destroyed by S-43 Plague with Heavy Machine Gun Performance ------------- Evolutions (9) 4500 Regions Visited (19) 3800 Robots Destroyed (219) 1095 Value Destroyed (10633) 10633 Prototype IDs (52) 1040 Alien Tech Used (0) 0 Bonus (8758) 8758 TOTAL SCORE: 29826 Bonus ------- Triggered High Security 500 High Alert Combat Kills 4085 Follower Combat Kills 2102 Entered DSFs 500 Network Hubs Disabled 200 Aligned with FarCom 300 Built Enhanced Grunts 300 A7 Reached Mainframe 300 Met R17 at Cetus 500 Friendly Fire -29 Cogmind --------- Core Integrity 0/1600 Matter 133/300 Energy 93/100 System Corruption 1% Temperature Cool (0) Movement Core (50) Location -1/Access Parts ------- > --- POWER (2) -------- (None) > --- PROPULSION (8) --- (None) > --- UTILITY (11) ----- (None) > --- WEAPON (4) ------- (None) > --- INVENTORY (5) ---- Graviton Reactor Large Storage Unit Improved Cloaking Device Advanced Variable Charge Gun Peak State ------------ > --- POWER ------------ Quantum Reactor Light Quantum Reactor > --- PROPULSION ------- Experimental Biometal Heavy Treads Biometal Leg Biometal Leg Biometal Leg Biometal Leg Biometal Leg > --- UTILITY ---------- Advanced Heat Sink Advanced Heat Sink Advanced Heat Sink Advanced Heat Sink Advanced Coolant Injector Large Storage Unit Experimental Core Analyzer Improved Cloaking Device Experimental Shield Generator Experimental System Shield > --- WEAPON ----------- Enhanced Quantum Rifle Enhanced Quantum Rifle Enhanced Nova Cannon Enhanced Nova Cannon > --- INVENTORY -------- Light Quantum Reactor Improved Heavy Siege Treads Advanced Heavy Siege Treads Centrium Leg High-density Centrium Leg Advanced Energy Well Advanced Signal Interpreter Layered Light Armor Plating Centrium Medium Armor Plating Advanced Variable Charge Gun Quantum Rifle Enhanced Nova Cannon CPS Tube [Rating: 187] Favorites ----------- Power Quantum Reactor Engine Cooled Ion Engine Power Core Neutrino Core Reactor Quantum Reactor Propulsion Carbon-fiber Leg Treads Light Treads Leg Carbon-fiber Leg Wheel Wheel Hover Unit Improved Linear Gravjet Flight Unit Surge Thruster Utility Advanced Heat Sink Device Advanced Heat Sink Storage Large Storage Unit Processor Experimental Core Analyzer Hackware Experimental System Shield Protection Layered Light Armor Plating Weapon Enhanced Nova Cannon Energy Gun Quantum Rifle Energy Cannon Enhanced Nova Cannon Ballistic Gun KE Penetrator Ballistic Cannon Improved Light Cannon Launcher Rocket Launcher Special Weapon CPS Tube Slashing Weapon Chainsword Piercing Weapon Spear Build | -11 -10 -10 -10 -9 -8 -7 -7 -7 -7 -5 -5 -5 -5 -5 -4 -3 -3 -2 -1 ------- Run | Yrd Mat Min Exi Min Mat Fac Sto Rec Scr Fac Ext Cet Arc Hub Fac Res DSF Res Acc Slots Evolved 18 | . . . . . 4 2 . . . 4 . . . . 2 2 . 2 2 Power 1 | . . . . . . 1 . . . . . . . . . . . . . Propulsion 6 | . . . . . 2 1 . . . 2 . . . . . . . . 1 Utility 9 | . . . . . 2 . . . . 2 . . . . 1 2 . 1 1 Weapon 2 | . . . . . . . . . . . . . . . 1 . . 1 . Parts Attached 247 | 6 . 2 1 2 30 14 3 . . 4 32 19 4 5 13 6 4 97 5 Power 29 | . . . . . 2 4 . . . 1 4 4 . . 2 . 4 8 . Engine 6 | . . . . . 2 2 . . . . . 2 . . . . . . . Core 8 | . . . . . . 2 . . . 1 4 . . . 1 . . . . Reactor 15 | . . . . . . . . . . . . 2 . . 1 . 4 8 . Propulsion 71 | 2 . . . . 10 3 2 . . . 12 4 . 4 1 . . 30 3 Treads 18 | 2 . . . . 5 . . . . . 1 3 . . . . . 7 . Leg 39 | . . . . . . . . . . . 11 1 . 4 1 . . 22 . Wheel 2 | . . . . . 1 . . . . . . . . . . . . . 1 Hover 2 | . . . . . . . . . . . . . . . . . . 1 1 Flight 10 | . . . . . 4 3 2 . . . . . . . . . . . 1 Utility 94 | 2 . . 1 1 10 3 1 . . 3 10 8 2 1 8 4 . 39 1 Device 54 | 2 . . . 1 5 . 1 . . 1 3 6 1 1 6 3 . 23 1 Storage 13 | . . . 1 . 3 2 . . . . 2 . 1 . . . . 4 . Processor 11 | . . . . . 1 1 . . . 2 2 . . . . . . 5 . Hackware 2 | . . . . . . . . . . . . . . . 1 1 . . . Protection 14 | . . . . . 1 . . . . . 3 2 . . 1 . . 7 . Artifact . | . . . . . . . . . . . . . . . . . . . . Weapon 53 | 2 . 2 . 1 8 4 . . . . 6 3 2 . 2 2 . 20 1 Energy Gun 25 | 2 . . . . 5 . . . . . 2 2 2 . 2 . . 10 . Energy Cannon 14 | . . . . . 2 . . . . . 1 . . . . 2 . 9 . Ballistic Gun 4 | . . . . . . . . . . . 2 1 . . . . . 1 . Ballistic Cannon 2 | . . 2 . . . . . . . . . . . . . . . . . Launcher 2 | . . . . 1 1 . . . . . . . . . . . . . . Special Weapon 1 | . . . . . . . . . . . . . . . . . . . 1 Impact Weapon . | . . . . . . . . . . . . . . . . . . . . Slashing Weapon 4 | . . . . . . 4 . . . . . . . . . . . . . Piercing Weapon 1 | . . . . . . . . . . . 1 . . . . . . . . Special Melee Weapon . | . . . . . . . . . . . . . . . . . . . . Unidentified Prototypes 22 | . . . . 1 4 . 2 . . . . 4 2 1 1 . . 7 . Corrupted Parts 10 | . . . . . 8 . . . . . . . . 2 . . . . . System Corruption 39 | . . . . . 27 . . . . . . . . 12 . . . . . Parts Lost 74 | . . . . . 13 . . . . . 5 5 . . 3 . . 39 9 Power 10 | . . . . . 1 . . . . . . 1 . . 2 . . 6 . Propulsion 24 | . . . . . 6 . . . . . 3 2 . . . . . 8 5 Utility 29 | . . . . . 3 . . . . . 1 2 . . 1 . . 19 3 Weapon 11 | . . . . . 3 . . . . . 1 . . . . . . 6 1 Highest Loss Streak 9 | . . . . . 7 . . . . . 3 3 . . 2 . . 7 9 To Critical Strikes . | . . . . . . . . . . . . . . . . . . . . Average Backups 11 | 2 3 4 4 3 12 7 8 8 8 7 11 13 14 14 14 13 14 13 4 Power 1 | . . . . . 4 1 1 1 1 1 1 1 1 1 . . . 1 1 Propulsion 1 | . . . . . . . 1 1 1 . 1 1 . 1 3 4 4 3 . Utility 4 | 1 2 2 2 2 6 2 3 3 3 3 5 6 8 8 7 5 6 4 2 Weapon 2 | . . 2 2 . 1 3 3 3 2 2 1 4 3 3 2 3 3 3 1 Tool/Special . | . . . . . . . . . . . . . . . . . . . . Unused Backups 50 | 1 1 . 3 1 7 5 . . . . 12 2 1 2 1 . . 14 . Power 10 | . . . . . 5 1 . . . . 1 1 . . . . . 2 . Propulsion 6 | . 1 . . . . . . . . . 1 . . 1 . . . 3 . Utility 20 | . . . 3 . 2 3 . . . . 7 . . 1 1 . . 3 . Weapon 14 | 1 . . . 1 . 1 . . . . 3 1 1 . . . . 6 . Tool/Special . | . . . . . . . . . . . . . . . . . . . . Average Slot Usage (%) 86 | . 57 58 56 63 73 81 100 100 100 88 95 89 85 86 90 94 94 92 17 Engine 1 | . . . . . 5 8 . . . . . 3 5 5 2 . . . . Core 3 | . . . . . . 4 15 15 15 11 11 1 . . 1 4 . . . Reactor 3 | . . . . . . . . . . . . 5 5 5 5 4 7 7 . Treads 7 | . 28 28 28 28 21 . . . . . 2 6 5 5 5 4 4 4 2 Leg 16 | . . . . . . . . . . . 26 25 29 29 26 23 23 19 2 Flight 4 | . . . . . 1 32 38 38 38 35 7 . . . . . . . . Device 19 | . 28 28 27 26 16 13 15 15 15 11 14 22 16 17 23 26 23 22 1 Storage 5 | . . . . . 12 5 7 7 7 5 5 5 5 5 5 4 4 4 . Processor 3 | . . . . . . 7 7 7 7 11 9 . . . . . . 3 7 Hackware 2 | . . . . . . . . . . . . . . . . 5 9 5 . Protection 2 | . . . . . . . . . . . 3 4 5 5 5 4 4 3 . Energy Gun 6 | . . . . . 6 1 . . . . 3 4 7 9 14 11 9 9 . Energy Cannon 2 | . . . . . 2 . . . . . . 2 . . . 2 4 6 . Slashing Weapon 1 | . . . . . . 3 15 15 15 11 2 . . . . . . . . Peak Build Rating 187 | 8 8 12 9 17 38 47 47 45 45 58 79 106 102 109 128 144 145 187 66 Average Rating 101 | 3 8 8 8 11 21 36 45 45 45 53 68 96 98 102 119 141 143 171 42 On Entrance 57 | . 8 8 8 9 12 35 45 45 45 45 58 76 95 94 109 128 144 145 44 Naked Turns 2 | . . . . . . . . . . . . . . . . . . . 2 Heaviest Build 124 | 3 2 10 2 14 61 34 29 24 24 24 73 83 85 84 91 87 97 124 3 Greatest Support 160 | 3 3 40 3 40 82 24 27 24 24 24 121 160 82 106 111 111 111 146 10 Greatest Overweight (x) 13 | . . 3 . 4 13 1 1 1 . . 2 1 1 1 . . . 1 . Average Overweight (x) . | . . . . . . . . . . . . . . . . . . . . Largest Inventory Capacity 35 | 5 5 5 35 5 20 20 8 8 8 8 15 15 15 15 15 15 15 15 5 Average Capacity 12 | 5 5 5 5 5 16 7 8 8 8 8 11 15 15 15 15 15 15 14 5 Most Carried 20 | 5 5 5 5 5 20 18 8 8 8 8 15 15 15 15 15 15 15 15 5 Average Carried 12 | 2 3 4 4 4 13 6 8 8 8 7 11 14 14 14 14 14 15 14 4 Final Capacity 20 | 5 5 5 5 5 20 8 8 8 8 8 15 15 15 15 15 15 15 5 5 Final Carried 19 | 3 5 5 5 5 19 8 8 8 8 8 14 15 15 15 15 15 15 5 4 Class Distribution -------------------- 41% | Scavenger-Tank 24% | Scavenger-Mutant 16% | Mutant 4% | Scavenger-Sprinter 4% | Sprinter 3% | Skirmisher Dominant Class ---------------- Mutant | -10/Materials Mutant | -10/Mines Mutant | -10/Exiles Mutant | -9/Mines Mutant | -8/Materials Scavenger-Sprinter | -7/Factory Gladiator | -7/Storage Sprinter | -7/Recycling Sprinter | -7/Scraptown Scavenger-Sprinter | -5/Factory Scavenger-Mutant | -5/Extension Scavenger-Mutant | -5/Cetus Scavenger-Mutant | -5/Archives Scavenger-Mutant | -5/Hub_04(d) Scavenger-Tank | -4/Factory Scavenger-Tank | -3/Research Scavenger-Tank | -3/DSF Scavenger-Tank | -2/Research Mutant | -1/Access Resources | -11 -10 -10 -10 -9 -8 -7 -7 -7 -7 -5 -5 -5 -5 -5 -4 -3 -3 -2 -1 ----------- Run | Yrd Mat Min Exi Min Mat Fac Sto Rec Scr Fac Ext Cet Arc Hub Fac Res DSF Res Acc Matter Collected 4003 | 245 . 8 81 30 577 89 125 56 . 10 522 369 116 90 209 . . 1476 . Remotely 255 | . . . . . 255 . . . . . . . . . . . . . . Salvage Created 13694 | 148 . . . 17 395 79 170 . . . 1877 399 100 507 853 . 18 9131 . Parts 572 | 13 . 1 . 3 32 4 8 . . . 68 8 4 13 37 . . 381 . Haulers Intercepted 12 | . . . . . 1 . 2 . . . 1 . . 2 . . . 6 . Recyclers Shooed 6 | 1 . . . . . 1 1 . . . . . . . . . . 3 . Parts Field Recycled . | . . . . . . . . . . . . . . . . . . . . Retrieved Matter . | . . . . . . . . . . . . . . . . . . . . Parts Self-Destructed . | . . . . . . . . . . . . . . . . . . . . Prevented . | . . . . . . . . . . . . . . . . . . . . Kills | -11 -10 -10 -10 -9 -8 -7 -7 -7 -7 -5 -5 -5 -5 -5 -4 -3 -3 -2 -1 ------- Run | Yrd Mat Min Exi Min Mat Fac Sto Rec Scr Fac Ext Cet Arc Hub Fac Res DSF Res Acc Combat Hostiles Destroyed 142 | . . 1 . 3 6 . . . . . 14 6 1 1 13 . . 97 . Melee 5 | . . . . . . . . . . . 5 . . . . . . . . Guns 53 | . . . . . 4 . . . . . 5 3 1 . 7 . . 33 . Cannons 60 | . . 1 . . 1 . . . . . . 3 . . . . . 55 . AOE 15 | . . . . 3 1 . . . . . 3 . . . 6 . . 2 . Classes Destroyed 21 | 2 . 1 . . 6 . 1 . . . 3 . . . 2 . . 6 . Worker 18 | . . . . . 2 . . . . . 1 . . 3 1 . . 11 . Builder 18 | . . . . . . . . . . . 4 . . 1 2 . . 11 . Tunneler 5 | 5 . . . . . . . . . . . . . . . . . . . Hauler 12 | . . . . . 1 . 2 . . . 1 . . 2 . . . 6 . Recycler 12 | 1 . . . . . 1 1 . . . 5 . . . . . . 4 . Carrier 1 | . . . . . . . . . . . . . . . . . . 1 . Mechanic 1 | . . . . . . . . . . . . . . . 1 . . . . Operator 2 | . . . . . . . 1 . . . . . 1 . . . . . . Watcher 7 | . . . . . 1 . . . . . 1 1 . 1 . . . 3 . Swarmer 19 | . . 1 . 3 . . . . . . . . . . 4 . . 11 . Cutter 2 | . . . . . 2 . . . . . . . . . . . . . . Saboteur 1 | . . . . . . . . . . . . . . . . . . 1 . Grunt 55 | . . . . . 3 . . . . . 8 1 . 1 7 . . 35 . Brawler 4 | . . . . . . . . . . . . . . . . . . 4 . Duelist 2 | . . . . . . . . . . . . . . . . . . 2 . Protector 1 | . . . . . . . . . . . . . . . . . . 1 . Sentry 9 | . . . . . . . . . . . 4 . 1 . . . . 4 . Hunter 11 | . . . . . . . . . . . . . . . . . . 11 . Programmer 27 | . . . . . . . . . . . . . . . 2 . . 25 . Heavy 2 | . . . . . 1 . . . . . . . . . . . . 1 . Behemoth 3 | . . . . . . . . . . . 1 . . . . . . 2 . Cetus Guard 5 | . . . . . . . . . . . . 5 . . . . . . . Enhanced Grunt 1 | . . . . . . . . . . . . . . 1 . . . . . Thug 1 | . . . . . . . . . . . 1 . . . . . . . . Best Kill Streak 20 | 4 . 1 . 3 3 1 2 . . . 7 3 1 8 4 . . 20 . Combat Bots Only 17 | . . 1 . 3 3 . . . . . 4 3 1 1 4 . . 17 . Max Kills in Single Turn 7 | 2 . 1 . 2 1 1 1 . . . 4 1 1 7 4 . . 3 . Gunslinging . | . . . . . . . . . . . . . . . . . . . . Exploded 4 | . . . . 2 1 . . . . . 2 . . . 4 . . 2 . Melee 1 | . . . . . . . . . . . 1 . . . . . . . . Uniques/NPCs Destroyed 1 | . . . . . . . . . . . . 1 . . . . . . . A7 (-5/Cetus) Combat | -11 -10 -10 -10 -9 -8 -7 -7 -7 -7 -5 -5 -5 -5 -5 -4 -3 -3 -2 -1 -------- Run | Yrd Mat Min Exi Min Mat Fac Sto Rec Scr Fac Ext Cet Arc Hub Fac Res DSF Res Acc Hostile Shots Fired 1562 | . . 16 . 3 74 . 1 . . . 94 70 15 34 58 . 11 1030 156 Missed 443 | . . 7 . 1 16 . 1 . . . 41 26 3 9 14 . 3 269 53 Hits 1119 | . . 9 . 2 58 . . . . . 53 44 12 25 44 . 8 761 103 Melee 23 | . . . . . 8 . . . . . . . . . . . . 15 . Projectile 1096 | . . 9 . 2 50 . . . . . 53 44 12 25 44 . 8 746 103 AOE 1 | . . . . . 1 . . . . . . . . . . . . . . Critical Strikes 63 | . . . . . 8 . . . . . 3 4 . 2 3 . . 39 4 Part Disruptions 3 | . . . . . . . . . . . . . . 1 1 . . 1 . Damage Taken 22792 | . . 81 . 17 1817 . . . . . 981 1227 309 625 842 . 185 14595 2113 Core 3132 | . . 8 . . 388 . . . . . 214 46 . 11 54 . 25 771 1615 Absorbed by Shields 311 | . . . . . . . . . . . 276 27 . . . . . 8 . Reduced by Siege Mode 1193 | . . . . . . . . . . . . 75 . . . . . 1118 . Redirected to Shielding 25 | . . . . . . . . . . . . . . . . . . 25 . Ignored by Resistances 3167 | . . . . . . . . . . . . 113 36 12 218 . . 2788 . Regen/Repaired (Parts) 66 | . . . . . . . . . . . . . . . 66 . . . . Core Remaining (%) 79 | 100 . . . 96 29 . . . 100 . . . . 72 95 . 98 46 . Volleys Fired 493 | 9 . 3 . 2 60 2 . . . . 48 21 18 14 31 . 1 281 3 Largest 4 | 2 . 2 . 1 2 1 . . . . 2 2 2 2 3 . 1 4 1 Hottest 568 | 90 . 66 . 33 129 61 . . . . 225 310 260 188 276 . 113 568 240 Shots Fired 1211 | 18 . 6 . 2 86 2 . . . . 82 40 26 26 68 . 1 851 3 Gun 760 | 18 . . . . 67 2 . . . . 76 20 26 26 63 . . 459 3 Cannon 424 | . . 6 . . 12 . . . . . . 20 . . . . 1 385 . Launcher 27 | . . . . 2 7 . . . . . 6 . . . 5 . . 7 . Special . | . . . . . . . . . . . . . . . . . . . . Kinetic 62 | . . 6 . . . . . . . . 39 . 9 . . . . 8 . Thermal 1104 | 18 . . . . 61 2 . . . . 37 40 17 26 63 . 1 836 3 Explosive 8 | . . . . 2 6 . . . . . . . . . . . . . . Electromagnetic 37 | . . . . . 19 . . . . . 6 . . . 5 . . 7 . Robot Hit Streak 38 | 6 . 5 . 3 11 . . . . . 7 9 9 5 12 . . 38 21 Robot Miss Streak 9 | 1 . 1 . . 4 2 . . . . 2 3 2 1 2 . . 9 . Penetration Max 1 | . . . . . . . . . . . 1 . . . . . . . . Secondary Targets 3 | . . . . . . . . . . . 1 . . . 1 . . 1 . Max Gunslinging Chain 1 | . . . . . . . . . . . 1 . . . 1 . . 1 . Shots Hit Robots 774 | 13 . 3 . 2 46 1 10 . . . 89 27 17 12 45 . . 507 2 Core Hits 410 | 7 . 1 . 3 22 1 3 . . . 44 14 6 13 31 . . 265 . Critical Kills 5 | . . . . . . . . . . . 2 . . . . . . 3 . Critical Parts Destroyed 1 | . . . . . . . . . . . 1 . . . . . . . . Critical Strikes 21 | 1 . . . . . . 2 . . . 11 . . . . . . 7 . Burn 5 | 1 . . . . . . . . . . . . . . . . . 4 . Meltdown 3 | . . . . . . . . . . . . . . . . . . 3 . Destroy 4 | . . . . . . . . . . . 4 . . . . . . . . Sever 9 | . . . . . . . 2 . . . 7 . . . . . . . . Melee Attacks 70 | . . . . . . 1 17 1 . 1 50 . . . . . . . . Impact . | . . . . . . . . . . . . . . . . . . . . Slashing 60 | . . . . . . 1 17 1 . 1 40 . . . . . . . . Piercing 10 | . . . . . . . . . . . 10 . . . . . . . . Sneak Attacks 7 | . . . . . . . 5 . . . 2 . . . . . . . . Combat Hostiles 1 | . . . . . . . . . . . 1 . . . . . . . . Follow-up Attacks 5 | . . . . . . . 1 . . . 4 . . . . . . . . Damage Inflicted 33050 | 165 . 64 . 224 1055 19 656 . . . 4143 1037 513 1477 1875 . 31 21693 98 Guns 16149 | 165 . . . . 687 . . . . . 1606 594 503 368 1302 . . 10826 98 Cannons 10591 | . . 64 . . 169 . . . . . . 438 . . . . . 9920 . Explosions 3766 | . . . . 224 199 . . . . . 794 . . 1097 573 . . 879 . Melee 2378 | . . . . . . 19 656 . . . 1703 . . . . . . . . Ramming 166 | . . . . . . . . . . . 40 5 10 12 . . 31 68 . Kinetic 1365 | . . 64 . . . . . . . . 1036 . 179 . . . . 86 . Thermal 25425 | 165 . . . . 661 . . . . . 613 1032 324 368 1429 . . 20735 98 Explosive 380 | . . . . 224 156 . . . . . . . . . . . . . . Electromagnetic 3336 | . . . . . 238 . . . . . 751 . . 1097 446 . . 804 . Impact . | . . . . . . . . . . . . . . . . . . . . Slashing 2378 | . . . . . . 19 656 . . . 1703 . . . . . . . . Piercing . | . . . . . . . . . . . . . . . . . . . . Highest Corruption 28 | . . . . . 28 1 1 1 . . . . . 15 4 . . 14 1 Average Corruption 7 | . . . . . 8 1 1 1 . . . . . 12 3 . . 8 1 Corruption Purged 10 | . . . . . . . . . . . . . . . . . . 10 . Corruption Blocked . | . . . . . . . . . . . . . . . . . . . . Effects 129 | . . . . . 7 . 2 1 . . . . . 3 6 . . 110 . Message Errors 24 | . . . . . 3 . 2 . . . . . . 1 1 . . 17 . Matter Fused 29 | . . . . . 1 . . . . . . . . . 4 . . 24 . Heat Flow Errors 17 | . . . . . 1 . . . . . . . . . 1 . . 15 . Energy Discharges 12 | . . . . . . . . . . . . . . 2 . . . 10 . Parts Rejected 3 | . . . . . . . . . . . . . . . . . . 3 . Parts Fused 1 | . . . . . . . . . . . . . . . . . . 1 . Data Loss (minor) 16 | . . . . . 1 . . 1 . . . . . . . . . 14 . Data Loss (major) 4 | . . . . . 1 . . . . . . . . . . . . 3 . Misfires 5 | . . . . . . . . . . . . . . . . . . 5 . Alerts 3 | . . . . . . . . . . . . . . . . . . 3 . Weapon Failures 15 | . . . . . . . . . . . . . . . . . . 15 . Overload Shots 56 | . . . . . . . . . . . 2 10 3 . . . . 38 3 Effects 3 | . . . . . . . . . . . . 1 . . . . . 2 . Energy Bleed 2 | . . . . . . . . . . . . 1 . . . . . 1 . Heat Surge 1 | . . . . . . . . . . . . . . . . . . 1 . Overflow Damage 719 | . . 1 . 21 10 . 162 . . . 122 . . 98 . . 1 304 . Projectiles 302 | . . 1 . . . . . . . . . . . . . . . 301 . Explosions 144 | . . . . 21 10 . . . . . 12 . . 98 . . . 3 . Melee 273 | . . . . . . . 162 . . . 110 . . . . . 1 . . Knockbacks 2 | . . . . . . . . . . . 1 . . . . . 1 . . Impact 2 | . . . . . . . . . . . 1 . . . . . 1 . . Kinetic . | . . . . . . . . . . . . . . . . . . . . Secondary . | . . . . . . . . . . . . . . . . . . . . Self-Inflicted Damage 334 | . . . . . 75 . . . . . . . . 100 159 . . . . Shots 9 | . . . . . 2 . . . . . . . . 1 6 . . . . Rammed 4 | . . . . . . . . . . . . 1 . . . . . 1 2 Targets Rammed 16 | . . . . . . . . . . . 1 1 1 1 . . 1 9 2 Kicked 12 | . . . . . . . . . . . 1 . 1 1 . . 1 8 . Crushed . | . . . . . . . . . . . . . . . . . . . . Highest Temperature 719 | 75 . . . . 625 23 70 93 9 10 284 261 78 182 238 . 26 719 345 Average Temperature 104 | 37 . . . . 289 10 24 17 2 5 53 123 28 84 126 . 19 104 156 Received Heat Transfer 4254 | . . 18 . . 297 . . . . . 282 207 45 18 172 . . 3215 . Effects 33 | . . . . . 23 . . . . . . 1 . . . . . 9 . Shutdowns 3 | . . . . . 1 . . . . . . . . . . . . 2 . Energy Bleed 6 | . . . . . 4 . . . . . . 1 . . . . . 1 . Interference 6 | . . . . . 5 . . . . . . . . . . . . 1 . Short Circuit 4 | . . . . . 1 . . . . . . . . . . . . 3 . Damage (minor) 4 | . . . . . 3 . . . . . . . . . . . . 1 . Damage (major) 9 | . . . . . 8 . . . . . . . . . . . . 1 . Damage (core) 1 | . . . . . 1 . . . . . . . . . . . . . . Siege Activations 17 | . . . . . . . . . . . . 1 1 . 1 . . 14 . Total Turns 524 | . . . . . . . . . . . . 28 2 . 15 . . 479 . Longest Duration 100 | . . . . . . . . . . . . 28 2 . 15 . . 100 . Martial Activations . | . . . . . . . . . . . . . . . . . . . . Shielding Activations . | . . . . . . . . . . . . . . . . . . . . Robots Disrupted . | . . . . . . . . . . . . . . . . . . . . Combat Hostiles . | . . . . . . . . . . . . . . . . . . . . Robots Corrupted 5 | . . . . . . . . . . . 3 . . 2 . . . . . Combat Hostiles 2 | . . . . . . . . . . . 1 . . 1 . . . . . Parts Fried 26 | . . . . . . . . . . . 11 . . 11 . . . 4 . Impact Corruptions 2 | . . . . . . . . . . . 1 . . . . . 1 . . Robots Melted 7 | . . . . . . . . . . . . . . . . . . 7 . Combat Hostiles 7 | . . . . . . . . . . . . . . . . . . 7 . Parts Melted 61 | 1 . . . . 2 . . . . . . . . . 5 . . 53 . Heat Transferred 27688 | 520 . . . . 1221 . . . . . 888 1264 396 481 1717 . . 21101 100 Parts Sabotaged 1 | . . . . . . . . . . . . . . . . . . 1 . Parts Stolen . | . . . . . . . . . . . . . . . . . . . . Parts Stripped . | . . . . . . . . . . . . . . . . . . . . Power Chain Reactions 10 | . . . . . . . . . . . 1 . . . 6 . . 3 . Alert | -11 -10 -10 -10 -9 -8 -7 -7 -7 -7 -5 -5 -5 -5 -5 -4 -3 -3 -2 -1 ------- Run | Yrd Mat Min Exi Min Mat Fac Sto Rec Scr Fac Ext Cet Arc Hub Fac Res DSF Res Acc Maximum Alert Level 5 | . . . . . . . 1 1 . . 2 2 1 3 3 1 1 5 5 Low Security (%) 45 | 100 100 100 . 100 100 100 98 40 . 100 53 . 8 8 . . . 30 . Level 1 12 | . . . . . . . 1 59 . . 9 33 91 4 . 100 100 6 . Level 2 16 | . . . . . . . . . . . 36 66 . 66 69 . . 6 . Level 3 12 | . . . . . . . . . . . . . . 20 30 . . 28 . Level 4 4 | . . . . . . . . . . . . . . . . . . 11 . Level 5 6 | . . . . . . . . . . . . . . . . . . 14 100 High Security 1 | . . . . . . . . . . . . . . . . . . 2 . Max Security . | . . . . . . . . . . . . . . . . . . . . Peak Influence 2797 | 20 13 65 . 92 64 11 211 324 . 2 584 574 315 1053 740 363 223 2797 1718 Initial 1665 | . 6 . . . 31 11 . 64 . . . 315 179 68 494 363 221 133 1665 Average 474 | 5 5 10 . 4 13 1 86 216 . . 263 444 244 525 629 322 221 825 1670 Influence Increases 8696 | 30 7 65 . 92 289 5 396 300 . 2 1308 529 208 1111 426 22 17 3736 153 Destroy 0b10 Robot/C 3840 | . . 20 . 60 120 . 140 . . . 720 240 80 260 260 . . 1940 . Destroy 0b10 Robot/NC 395 | 30 . . . . 20 5 20 . . . 60 10 5 45 20 . . 180 . Destroy Leader 664 | . . . . 10 34 . 34 . . . 62 10 . 58 40 . . 416 . Allied During Kill 982 | . . . . . . . 94 . . . 309 208 85 286 . . . . . Successful Hack 212 | . 7 . . . 15 . 16 45 . . 35 . . . . 22 . 72 . Select Force Hacks 240 | . . . . . . . . 240 . . . . . . . . . . . Disable Machine 405 | . . . . 15 30 . 15 15 . . 30 15 30 60 15 . 15 165 . Anti-Garrison Action 200 | . . . . . . . . . . . . . . 200 . . . . . Destroy Structure 933 | . . . . 7 55 . 2 . . 2 62 46 8 202 76 . 2 468 3 Partial Spotted 30 | . . . . . . . 15 . . . . . . . . . . 15 . Lose Combat Pursuer 795 | . . 45 . . 15 . 60 . . . 30 . . . 15 . . 480 150 Influence Decreases 7028 | 20 17 20 45 10 344 32 231 161 304 . 747 644 459 299 743 419 74 1197 1262 Entered New Map 3304 | . 4 . 45 . 51 16 . 101 304 . 2 248 269 129 515 329 74 105 1112 Time Decay 2498 | 20 13 20 . 10 223 16 45 60 . . 515 246 170 110 198 90 . 702 60 Lost Part 680 | . . . . . 70 . . . . . 50 50 . . 30 . . 390 90 Lost Ally 546 | . . . . . . . 186 . . . 180 100 20 60 . . . . . Squads Dispatched 60 | . . . . . 3 5 4 . . 1 3 1 . 3 1 . 1 38 . Investigation 12 | . . . . . 1 4 1 . . 1 . 1 . 1 1 . . 2 . Extermination 9 | . . . . . . . . . . . . . . . . . . 9 . Reinforcement 18 | . . . . . 2 1 3 . . . 3 . . 2 . . 1 6 . Assault 16 | . . . . . . . . . . . . . . . . . . 16 . Garrison 5 | . . . . . . . . . . . . . . . . . . 5 . Intercept . | . . . . . . . . . . . . . . . . . . . . Searches Triggered . | . . . . . . . . . . . . . . . . . . . . Construction Impeded 6 | . . . . . . . . . . . 2 . . . . . . 4 . Haulers Reinforced 3 | . . . . . . . 2 . . . . . . 1 . . . . . Active Scanning Responses . | . . . . . . . . . . . . . . . . . . . . Cargo Convoy Interrupts . | . . . . . . . . . . . . . . . . . . . . Stealth | -11 -10 -10 -10 -9 -8 -7 -7 -7 -7 -5 -5 -5 -5 -5 -4 -3 -3 -2 -1 --------- Run | Yrd Mat Min Exi Min Mat Fac Sto Rec Scr Fac Ext Cet Arc Hub Fac Res DSF Res Acc Distress Signals 22 | . . . . . . . 2 . . . 4 2 . 3 . . . 9 2 Communications Jammed 91 | . . . . . . . . . . . . . . . . . . 91 . Distress Signals 91 | . . . . . . . . . . . . . . . . . . 91 . Times Spotted 327 | . . 6 . 3 15 1 9 . . . 34 14 10 18 16 . 4 176 21 Peak Tracking Total 18 | . 1 3 . 3 3 1 5 . . . 8 5 2 8 4 . 4 18 16 Tactical Retreats 24 | . . 1 . . 1 . 2 . . . 2 . . . 1 . . 14 3 Traps | -11 -10 -10 -10 -9 -8 -7 -7 -7 -7 -5 -5 -5 -5 -5 -4 -3 -3 -2 -1 ------- Run | Yrd Mat Min Exi Min Mat Fac Sto Rec Scr Fac Ext Cet Arc Hub Fac Res DSF Res Acc Traps Triggered 7 | . . . . . . . . . . . 3 . . . . . . 4 . Indirectly . | . . . . . . . . . . . . . . . . . . . . Trap Hack Attempts . | . . . . . . . . . . . . . . . . . . . . Triggered . | . . . . . . . . . . . . . . . . . . . . Disarmed . | . . . . . . . . . . . . . . . . . . . . Reprogrammed . | . . . . . . . . . . . . . . . . . . . . Reused . | . . . . . . . . . . . . . . . . . . . . Traps Extracted . | . . . . . . . . . . . . . . . . . . . . Installed . | . . . . . . . . . . . . . . . . . . . . Triggered . | . . . . . . . . . . . . . . . . . . . . Machines | -11 -10 -10 -10 -9 -8 -7 -7 -7 -7 -5 -5 -5 -5 -5 -4 -3 -3 -2 -1 ---------- Run | Yrd Mat Min Exi Min Mat Fac Sto Rec Scr Fac Ext Cet Arc Hub Fac Res DSF Res Acc Machines Disabled 30 | . . . . 1 2 . 1 1 . . 4 2 2 4 1 . 1 11 . Max in Single Turn 4 | . . . . 1 1 . 1 1 . . 2 1 1 4 1 . 1 1 . Garrison Access 3 | . . . . . 1 . . . . . . . . 1 . . . 1 . Network Hub 1 | . . . . . . . . . . . . . . 1 . . . . . Energy Cycler 1 | . . . . . . . . . . . 1 . . . . . . . . Machines Repaired . | . . . . . . . . . . . . . . . . . . . . Machines Dismantled . | . . . . . . . . . . . . . . . . . . . . Machines Sabotaged . | . . . . . . . . . . . . . . . . . . . . Overloaded Fab Kills . | . . . . . . . . . . . . . . . . . . . . Hacking | -11 -10 -10 -10 -9 -8 -7 -7 -7 -7 -5 -5 -5 -5 -5 -4 -3 -3 -2 -1 --------- Run | Yrd Mat Min Exi Min Mat Fac Sto Rec Scr Fac Ext Cet Arc Hub Fac Res DSF Res Acc Machines Accessed 61 | . 2 . 1 2 4 5 4 15 1 4 7 1 1 1 2 2 . 9 . Terminals 35 | . 2 . . . 3 3 4 6 . 2 7 1 . . . 2 . 5 . Fabricators 4 | . . . . . . 2 . . . 1 . . . . . . . 1 . Repair Stations 1 | . . . . . . . . . . . . . . . 1 . . . . Recycling Units 13 | . . . . . . . . 9 . 1 . . . . 1 . . 2 . Scanalyzers . | . . . . . . . . . . . . . . . . . . . . Garrison Access 3 | . . . . . 1 . . . . . . . . 1 . . . 1 . Total Hacks 143 | . 6 . 1 2 14 11 9 31 1 7 11 3 2 1 9 7 . 28 . Successful 60 | . 2 . 1 2 6 . 2 20 1 2 5 . 2 1 2 4 . 10 . Failed 83 | . 4 . . . 8 11 7 11 . 5 6 3 . . 7 3 . 18 . Catastrophic 29 | . 2 . . . 2 6 3 2 . 2 2 2 . . 2 2 . 4 . Database Lockouts . | . . . . . . . . . . . . . . . . . . . . Manual 83 | . . . 1 . 11 5 7 26 . 4 2 1 . 1 7 3 . 15 . Terminals 91 | . 6 . . . 12 6 9 20 . 3 11 3 . . . 7 . 14 . Fabricators 10 | . . . . . . 5 . . . 3 . . . . . . . 2 . Repair Stations 1 | . . . . . . . . . . . . . . . 1 . . . . Recycling Units 31 | . . . . . . . . 11 . 1 . . . . 8 . . 11 . Scanalyzers . | . . . . . . . . . . . . . . . . . . . . Garrison Access 4 | . . . . . 2 . . . . . . . . 1 . . . 1 . Terminal Hacks 29 | . 2 . 1 2 2 . 1 7 1 1 5 . 2 . . 3 . 2 . Record 4 | . . . . . . . . 1 1 . . . 2 . . . . . . Robot Analysis 2 | . . . . . . . . 2 . . . . . . . . . . . Prototype ID Bank 3 | . . . . . . . . 3 . . . . . . . . . . . Open Door 9 | . . . . 2 . . 1 . . 1 5 . . . . . . . . Open DSF 2 | . . . . . . . . . . . . . . . . 1 . 1 . Branch Access Points 2 | . 1 . . . . . . . . . . . . . . . . 1 . Emergency Access Points 1 | . . . . . . . . . . . . . . . . 1 . . . Zone Layout 5 | . 1 . . . 2 . . 1 . . . . . . . 1 . . . Proto ID Catalog 1 | . . . 1 . . . . . . . . . . . . . . . . Fabricator Hacks 1 | . . . . . . . . . . 1 . . . . . . . . . Network Status 1 | . . . . . . . . . . 1 . . . . . . . . . Repair Station Hacks . | . . . . . . . . . . . . . . . . . . . . Recycling Unit Hacks 2 | . . . . . . . . . . . . . . . 1 . . 1 . Retrieve Components 2 | . . . . . . . . . . . . . . . 1 . . 1 . Scanalyzer . | . . . . . . . . . . . . . . . . . . . . Garrison Access Hacks 2 | . . . . . 1 . . . . . . . . . . . . 1 . Seal Access 2 | . . . . . 1 . . . . . . . . . . . . 1 . Unauthorized Hacks 26 | . . . . . 3 . 1 13 . . . . . 1 1 1 . 6 . Terminals 11 | . . . . . 3 . 1 5 . . . . . . . 1 . 1 . Track 1 | . . . . . 1 . . . . . . . . . . . . . . Assimilate 1 | . . . . . . . 1 . . . . . . . . . . . . Botnet 9 | . . . . . 2 . . 5 . . . . . . . 1 . 1 . Fabricators 1 | . . . . . . . . . . . . . . . . . . 1 . Fabnet 1 | . . . . . . . . . . . . . . . . . . 1 . Repair Stations 1 | . . . . . . . . . . . . . . . 1 . . . . Patch 1 | . . . . . . . . . . . . . . . 1 . . . . Recycling Units 12 | . . . . . . . . 8 . . . . . . . . . 4 . Monitor 1 | . . . . . . . . . . . . . . . . . . 1 . Reject 1 | . . . . . . . . . . . . . . . . . . 1 . Recyclers 1 | . . . . . . . . . . . . . . . . . . 1 . Mask 1 | . . . . . . . . . . . . . . . . . . 1 . Tunnel 8 | . . . . . . . . 8 . . . . . . . . . . . Scanalyzers . | . . . . . . . . . . . . . . . . . . . . Garrison Access 1 | . . . . . . . . . . . . . . 1 . . . . . Jam 1 | . . . . . . . . . . . . . . 1 . . . . . Data Cores Recovered 1 | . . . . . . . 1 . . . . . . . . . . . . Used . | . . . . . . . . . . . . . . . . . . . . Hacking Detections 37 | . 2 . . . 3 5 4 7 . 3 4 1 . . 1 1 . 6 . Full Trace Events 15 | . . . . . 1 4 1 7 . 1 . 1 . . . . . . . Feedback Events 1 | . . . . . . 1 . . . . . . . . . . . . . Corruption 1 | . . . . . . 1 . . . . . . . . . . . . . Feedback Blocked . | . . . . . . . . . . . . . . . . . . . . Robot Schematics Acquired . | . . . . . . . . . . . . . . . . . . . . Robots Built . | . . . . . . . . . . . . . . . . . . . . Authchips . | . . . . . . . . . . . . . . . . . . . . Time . | . . . . . . . . . . . . . . . . . . . . Total Robot Build Rating . | . . . . . . . . . . . . . . . . . . . . Part Schematics Acquired . | . . . . . . . . . . . . . . . . . . . . Parts Built . | . . . . . . . . . . . . . . . . . . . . Authchips . | . . . . . . . . . . . . . . . . . . . . Time . | . . . . . . . . . . . . . . . . . . . . Total Part Build Rating . | . . . . . . . . . . . . . . . . . . . . Parts Repaired . | . . . . . . . . . . . . . . . . . . . . Time . | . . . . . . . . . . . . . . . . . . . . Parts Recycled . | . . . . . . . . . . . . . . . . . . . . Recycled Matter . | . . . . . . . . . . . . . . . . . . . . Retrieved Matter . | . . . . . . . . . . . . . . . . . . . . Retrieved Components 2 | . . . . . . . . . . . . . . . 2 . . . . Parts Scanalyzed . | . . . . . . . . . . . . . . . . . . . . Part Schematics Acquired . | . . . . . . . . . . . . . . . . . . . . Parts Damaged . | . . . . . . . . . . . . . . . . . . . . Bothacking | -11 -10 -10 -10 -9 -8 -7 -7 -7 -7 -5 -5 -5 -5 -5 -4 -3 -3 -2 -1 ------------ Run | Yrd Mat Min Exi Min Mat Fac Sto Rec Scr Fac Ext Cet Arc Hub Fac Res DSF Res Acc Used RIF Installer . | . . . . . . . . . . . . . . . . . . . . Robots Hacked . | . . . . . . . . . . . . . . . . . . . . Non-combat . | . . . . . . . . . . . . . . . . . . . . Combat . | . . . . . . . . . . . . . . . . . . . . Robot Hacks Applied . | . . . . . . . . . . . . . . . . . . . . Relay Couplers Released 4 | . . . . . 1 . . . . . . . . . . . . 3 . Machine Destruction 1 | . . . . . 1 . . . . . . . . . . . . . . Programmers 3 | . . . . . . . . . . . . . . . . . . 3 . Fabnet Peak Effective % . | . . . . . . . . . . . . . . . . . . . . Robots Rewired 18 | . . . . . . . . . . . 18 . . . . . . . . Allies Hacked . | . . . . . . . . . . . . . . . . . . . . Hacks Repelled . | . . . . . . . . . . . . . . . . . . . . Allies | -11 -10 -10 -10 -9 -8 -7 -7 -7 -7 -5 -5 -5 -5 -5 -4 -3 -3 -2 -1 -------- Run | Yrd Mat Min Exi Min Mat Fac Sto Rec Scr Fac Ext Cet Arc Hub Fac Res DSF Res Acc Total Allies 38 | . . . . . . . 10 . . . 23 5 . . . . . . . Largest Group 11 | . . . . . . . 10 . . . 11 9 8 5 . . . . . Highest-Rated Group 567 | . . . . . . . 173 . . . 460 567 567 423 . . . . . Highest-Rated Ally 159 | . . . . . . . 29 . . . 159 153 96 96 . . . . . Total Orders 10 | . . . . 1 . 4 1 . . . 1 1 1 1 . . . . . STAY 1 | . . . . . . . . . . . . . . 1 . . . . . AID 3 | . . . . . . . . . . . 1 1 1 . . . . . . EXPLORE 6 | . . . . 1 . 4 1 . . . . . . . . . . . . Ally Attacks 362 | . . . . . . . 57 . . . 161 68 25 51 . . . . . Total Damage 9035 | . . . . . . . 697 . . . 3467 1691 895 2285 . . . . . Kills 59 | . . . . . . . 8 . . . 24 8 5 14 . . . . . Allies Corrupted 3 | . . . . . . . . . . . . . . 3 . . . . . Allies Melted 1 | . . . . . . . 1 . . . . . . . . . . . . Intel | -11 -10 -10 -10 -9 -8 -7 -7 -7 -7 -5 -5 -5 -5 -5 -4 -3 -3 -2 -1 ------- Run | Yrd Mat Min Exi Min Mat Fac Sto Rec Scr Fac Ext Cet Arc Hub Fac Res DSF Res Acc Active Infowar (turns) 5248 | 1 41 165 265 324 846 . . . . . 388 28 . . 398 189 91 2512 . Optics 899 | . . . . . . . . . . . . . . . . . . 899 . Terrain 1699 | 1 41 165 265 324 846 . . . . . . . . . . . . 57 . Structural 416 | . . . . . . . . . . . 388 28 . . . . . . . Seismic 5 | . . . . . 5 . . . . . . . . . . . . . . Triangulation 137 | . . . . . . . . . . . . . . . . 137 . . . Cloaking 1975 | . . . . . . . . . . . . . . . . 188 91 1696 . Jamming 2376 | . . . . . . . . . . . . . . . 398 189 91 1698 . Robot Analysis Total 2 | . . . . . . . . 2 . . . . . . . . . . . Derelict Logs Recovered 3 | . . 1 . 2 . . . . . . . . . . . . . . . Drone Launches 32 | . . . . 1 . 15 16 . . . . . . . . . . . . Drone Recoveries . | . . . . . . . . . . . . . . . . . . . . Exploration | -11 -10 -10 -10 -9 -8 -7 -7 -7 -7 -5 -5 -5 -5 -5 -4 -3 -3 -2 -1 ------------- Run | Yrd Mat Min Exi Min Mat Fac Sto Rec Scr Fac Ext Cet Arc Hub Fac Res DSF Res Acc Turns Passed 10210 | 81 41 165 276 364 1106 223 158 128 205 119 1643 520 352 233 415 189 91 3762 139 Spaces Moved 8113 | 45 75 249 530 244 543 373 249 509 740 251 1140 266 163 132 212 144 68 1946 234 Core 1508 | 45 75 247 530 240 53 . . . . . 1 . . . . . . 96 221 Treads 519 | . . 2 . 4 432 . . . . . . 74 . . . . . 7 . Legs 3492 | . . . . . . . . . . . 738 192 163 132 212 144 68 1843 . Wheels 63 | . . . . . 57 . . . . . . . . . . . . . 6 Hover . | . . . . . . . . . . . . . . . . . . . . Flight 2531 | . . . . . 1 373 249 509 740 251 401 . . . . . . . 7 Fastest Speed 5 | 50 50 50 50 50 100 23 23 23 23 23 5 114 114 114 120 120 120 50 40 Average Speed 81 | 50 50 51 50 66 153 27 25 23 23 23 88 143 156 120 120 120 120 112 50 Slowest Speed 700 | 50 50 200 50 250 700 66 63 66 23 23 150 188 188 188 120 120 120 250 80 Overloaded Moves 17 | . . . . . . . . . . . 17 . . . . . . . . Propulsion Burnouts . | . . . . . . . . . . . . . . . . . . . . Robots Hopped 6 | . . . . . . . . . 2 . 4 . . . . . . . . Potential Cave-ins . | . . . . . . . . . . . . . . . . . . . . Cave-ins Triggered . | . . . . . . . . . . . . . . . . . . . . Exploration Rate (%) 42 | 4 13 54 70 64 32 27 47 91 54 7 85 68 79 21 7 4 55 52 10 Regions Visited 19 Branch Regions 10 Pre-discovered Areas 8 | . . . . . . . . 8 . . . . . . . . . . . Known Exits Taken 4 | . 1 . . . 1 . . . . . . . . . . 1 . 1 . Unknown Exits Taken 14 | 1 . 1 1 1 . 1 1 1 1 1 1 1 1 1 1 . . . . Scrap Searched 3 | . . . . 1 . . . . 2 . . . . . . . . . . Spaces Dug 118 | . . . . . 28 . 2 . . 1 10 . . 5 18 . 1 52 1 Terrain Destroyed 463 | . . . . 10 60 . 2 . . 1 13 5 3 170 42 . 1 155 1 Melee 12 | . . . . . . . 2 . . 1 9 . . . . . . . . Projectile 186 | . . . . . 2 . . . . . 4 5 3 10 14 . 1 146 1 AOE 265 | . . . . 10 58 . . . . . . . . 160 28 . . 9 . Terrain Rammed . | . . . . . . . . . . . . . . . . . . . . Walls Destroyed . | . . . . . . . . . . . . . . . . . . . . Machines Disabled . | . . . . . . . . . . . . . . . . . . . . Actions | -11 -10 -10 -10 -9 -8 -7 -7 -7 -7 -5 -5 -5 -5 -5 -4 -3 -3 -2 -1 --------- Run | Yrd Mat Min Exi Min Mat Fac Sto Rec Scr Fac Ext Cet Arc Hub Fac Res DSF Res Acc Total 10755 | 85 78 280 542 444 727 499 321 514 772 309 1630 370 235 181 316 162 77 2963 250 Wait 1069 | 15 . 25 . 190 24 65 36 5 33 48 116 17 32 17 38 . . 408 . Move 8086 | 44 74 248 529 243 542 372 247 508 736 250 1133 265 162 131 211 143 68 1946 234 Hop 3 | . . . . . . . . . 1 . 2 . . . . . . . . Pick Up 169 | 8 3 . 3 . 36 13 . . 1 1 21 8 2 2 6 5 . 60 . Fast Attach 144 | 2 . . 3 4 21 10 6 . . 3 16 14 7 4 3 4 1 42 4 Attach 89 | 4 . 2 . . 13 7 . . . 2 4 5 1 2 5 2 . 38 4 Detach 37 | . . 2 . 1 3 5 . . . 1 . 6 3 1 . . . 12 3 Swap 125 | . . . . . 10 3 . . . 1 20 10 . 3 12 1 3 62 . Drop 267 | 3 1 . 7 4 18 21 6 . 1 2 39 23 9 6 10 7 4 106 . Fire 493 | 9 . 3 . 2 60 2 . . . . 48 21 18 14 31 . 1 281 3 Melee 62 | . . . . . . 1 14 1 . 1 45 . . . . . . . . Ram . | . . . . . . . . . . . . . . . . . . . . Kick 11 | . . . . . . . . . . . 1 . 1 1 . . . 8 . Crush 3 | . . . . . . . . . . . . 1 . . . . . . 2 Escape Stasis 37 | . . . . . . . 1 . . . 36 . . . . . . . . Rewire 153 | . . . . . . . 4 . . . 149 . . . . . . . . Trap . | . . . . . . . . . . . . . . . . . . . . Miscellaneous 7 | . . . . . . . 7 . . . . . . . . . . . . Route ------- -11/Scrapyard -10/Materials (discovered 2 exits: *Min x2) -10/Mines -10/Exiles -9/Mines -8/Materials -7/Factory (discovered 2 exits: *Sto / [*Low]) -7/Storage -7/Recycling (discovered 2 exits: *Fac / *Scr) -7/Scraptown -5/Factory -5/Extension (discovered 3 exits: *Fac x2 / *Cet) -5/Cetus (discovered 2 exits: *Fac / *Arc) -5/Archives (discovered 2 exits: *Hub x2) -5/Hub_04(d) -4/Factory -3/Research -3/DSF -2/Research (discovered 3 exits: *Acc / *Tes x2) -1/Access History --------- Turn | Location | Event 5 | -11/Scrapyard | Discovered new exit (range 15) 82 | -11/Scrapyard | Entered Materials 91 | -10/Materials | Identified exit to Mines 123 | -10/Materials | Entered Mines 161 | -10/Mines | Learned location of 1 exit from Materials 286 | -10/Mines | Deemed a non-threat by the Exiles lab entrance 286 | -10/Mines | Discovered new exit (range 5) 288 | -10/Mines | Entered Exiles 301 | -10/Exiles | Met 8R-AWN 307 | -10/Exiles | Build established: Mutant 310 | -10/Exiles | Met EX-HEX 325 | -10/Exiles | Met EX-BIN 348 | -10/Exiles | Aligned with FarCom system 348 | -10/Exiles | Given EX-Vault access code 360 | -10/Exiles | Opened EX-Vault 373 | -10/Exiles | Warned to stay clear of 0b10 Research branches 386 | -10/Exiles | Met EX-DEC 410 | -10/Exiles | Found Cloak of Protection 463 | -10/Exiles | Discovered new exit (range 14) 564 | -10/Exiles | Left Exiles lab with Cloak of Protection 564 | -10/Exiles | Entered Mines 566 | -9/Mines | Learned Materials security intel 568 | -9/Mines | Met a Derelict who couldn't figure out how to use a Trap Extractor 585 | -9/Mines | Found the Drone Emporium 588 | -9/Mines | Found Prototype Device 588 | -9/Mines | Identified Decoy Drone Bay 656 | -9/Mines | Learned Materials terminal intel 703 | -9/Mines | Received a Rocket Launcher from a helpful Derelict 915 | -9/Mines | Discovered new exit (range 14) 928 | -9/Mines | Entered Materials 928 | -8/Materials | Evolved 4 slots: Propulsion x2, Utility x2 929 | -8/Materials | Identified exit to Factory 931 | -8/Materials | Loaded intel: 12 terminal locations 1718 | -8/Materials | Build established: Skirmisher 1826 | -8/Materials | Lost 7 parts (3n3u1w) 1879 | -8/Materials | Core integrity fell below 50% 1905 | -8/Materials | Lost 6 parts (1p3n2w) 1951 | -8/Materials | System corruption reached 10% 2034 | -8/Materials | Entered Factory 2034 | -7/Factory | Evolved 2 slots: Power x1, Propulsion x1 2072 | -7/Factory | Discovered new exit (range 63) 2179 | -7/Factory | Discovered new exit (range 7) 2257 | -7/Factory | Entered Storage 2317 | -7/Storage | Assisted by bots powering up and referring to "LRC-V3" 2407 | -7/Storage | Used back door to open Recycling access 2407 | -7/Storage | Discovered new exit (range 5) 2415 | -7/Storage | Entered Recycling 2442 | -7/Recycling | Lost 10 allies 2488 | -7/Recycling | Discovered new exit (range 15) 2537 | -7/Recycling | Scanned before Scraplab entrance 2540 | -7/Recycling | Entered Scraplab 2542 | -7/Recycling | Discovered new exit (range 3) 2543 | -7/Recycling | Entered Scraptown 2543 | -7/Scraptown | System corruption cleaned by C-Scrubber 2579 | -7/Scraptown | Discovered new exit (range 11) 2664 | -7/Scraptown | Visited Awakened 2668 | -7/Scraptown | Visited Observation Area 2675 | -7/Scraptown | Turned away by UFD registrar 2683 | -7/Scraptown | Build established: Sprinter 2709 | -7/Scraptown | Visited Cyclists 2719 | -7/Scraptown | Visited The Evicted 2720 | -7/Scraptown | Visited Comm Corps 2726 | -7/Scraptown | Visited Assassins FH 2748 | -7/Scraptown | Entered Factory 2748 | -5/Factory | Evolved 4 slots: Propulsion x2, Utility x2 2866 | -5/Factory | Discovered new exit (range 6) 2867 | -5/Factory | Entered Extension 3042 | -5/Extension | Build established: Scavenger-Sprinter 3064 | -5/Extension | Rescued a captive Derelict 3066 | -5/Extension | Rescued a captive Derelict 3162 | -5/Extension | Rescued a captive Derelict 3164 | -5/Extension | Rescued a captive Derelict 3174 | -5/Extension | Lost 3 parts (3n) 3198 | -5/Extension | Rescued a captive Derelict 3248 | -5/Extension | Lost 4 allies 3254 | -5/Extension | Rescued A7 3265 | -5/Extension | Energy Cycler disabled 3266 | -5/Extension | Rescued a captive Derelict 3266 | -5/Extension | Rescued a captive Derelict 3267 | -5/Extension | Rescued a captive Derelict 3268 | -5/Extension | Rescued a captive Derelict 3269 | -5/Extension | Rescued a captive Derelict 3296 | -5/Extension | Lost 4 allies 3570 | -5/Extension | Build established: Scavenger-Mutant 3728 | -5/Extension | Spotted B-75 Beast 3751 | -5/Extension | Destroyed B-75 Beast 3763 | -5/Extension | Spotted B-75 Beast 3767 | -5/Extension | Disrupted transfer network 3777 | -5/Extension | Allies destroyed B-75 Beast 3781 | -5/Extension | Discovered new exit (range 15) 4453 | -5/Extension | Discovered new exit (range 10) 4454 | -5/Extension | Discovered new exit (range 6) 4510 | -5/Extension | Entered Cetus 4510 | -5/Cetus | Accompanied by 9 allies (A7) 4515 | -5/Cetus | Acquired a Cetus Manufacturing Module code from A7 4524 | -5/Cetus | Spotted Cetus Guard 4525 | -5/Cetus | Spotted Cetus Guard 4528 | -5/Cetus | Spotted Cetus Guard 4528 | -5/Cetus | Spotted Cetus Guard 4535 | -5/Cetus | Destroyed Cetus Guard 4542 | -5/Cetus | Destroyed Cetus Guard 4550 | -5/Cetus | Allies destroyed Cetus Guard 4551 | -5/Cetus | Destroyed Cetus Guard 4573 | -5/Cetus | Lost 3 allies 4645 | -5/Cetus | Started Cetus Manufacturing Module 4662 | -5/Cetus | Escorted A7 to Cetus Mainframe 4670 | -5/Cetus | Manufactured an Enhanced Grunt 4686 | -5/Cetus | Allies destroyed A7 4687 | -5/Cetus | Extracted ID and sensor layout for unrecognized location from A7's data core 4695 | -5/Cetus | Manufactured an Enhanced Grunt 4697 | -5/Cetus | Discovered new exit (range 15) 4720 | -5/Cetus | Manufactured an Enhanced Grunt 4723 | -5/Cetus | Spotted Cetus Guard 4723 | -5/Cetus | Spotted Cetus Guard 4726 | -5/Cetus | Spotted Cetus Guard 4727 | -5/Cetus | Spotted Cetus Guard 4741 | -5/Cetus | Allies destroyed Cetus Guard 4744 | -5/Cetus | Destroyed Cetus Guard 4745 | -5/Cetus | Manufactured an Enhanced Grunt 4752 | -5/Cetus | Allies destroyed Cetus Guard 4759 | -5/Cetus | Destroyed Cetus Guard 4770 | -5/Cetus | Manufactured an Enhanced Grunt 4780 | -5/Cetus | Discovered new exit (range 15) 4787 | -5/Cetus | Met Revision 17 4788 | -5/Cetus | Lost 3 parts (1p2u) 5030 | -5/Cetus | Entered Archives 5030 | -5/Archives | Accompanied by 8 allies 5072 | -5/Archives | Found Prototype Device 5072 | -5/Archives | Identified Exp. Thermal Shield 5095 | -5/Archives | Lost 3 allies 5147 | -5/Archives | Discovered new exit (range 16) 5158 | -5/Archives | Discovered new exit (range 15) 5184 | -5/Archives | Unable to access archive contents 5203 | -5/Archives | Unable to access archive contents 5382 | -5/Archives | Entered Hub_04(d) 5382 | -5/Hub_04(d) | Accompanied by 5 allies 5382 | -5/Hub_04(d) | Discovered new exit (range 11) 5562 | -5/Hub_04(d) | System corruption reached 10% 5567 | -5/Hub_04(d) | Network Hub disabled 5591 | -5/Hub_04(d) | Spotted Lightning 5597 | -5/Hub_04(d) | Spotted Lightning 5613 | -5/Hub_04(d) | Spotted Lightning 5615 | -5/Hub_04(d) | Entered Factory 5615 | -4/Factory | Evolved 2 slots: Utility x1, Weapon x1 5625 | -4/Factory | Lost 5 allies 5960 | -4/Factory | Build established: Scavenger-Tank 5976 | -4/Factory | Found Prototype Hackware 5976 | -4/Factory | Identified Exp. System Shield 5997 | -4/Factory | Discovered new exit (range 4) 6030 | -4/Factory | Entered Research 6030 | -3/Research | Evolved 2 slots: Utility x2 6219 | -3/Research | Identified exit to DSF 6219 | -3/Research | Entered DSF 6248 | -3/DSF | Additional patrols routed to DSF 6264 | -3/DSF | Discovered new exit (range 11) 6310 | -3/DSF | Entered Research 6310 | -2/Research | Evolved 2 slots: Utility x1, Weapon x1 6339 | -2/Research | Found Prototype Processor 6339 | -2/Research | Identified Spectral Analyzer 7237 | -2/Research | Spotted B-90 Cyclops 7268 | -2/Research | Destroyed B-90 Cyclops 7289 | -2/Research | Lost 4 parts (4u) 7361 | -2/Research | Garrison activated, responded to threat 7520 | -2/Research | Lost 7 parts (3n1u3w) 7522 | -2/Research | Destroyed 7 combat bots 7586 | -2/Research | Lost 5 parts (1p1n2u1w) 7655 | -2/Research | Garrison activated, responded to threat 7751 | -2/Research | Spotted B-90 Cyclops 7832 | -2/Research | Destroyed B-90 Cyclops 7852 | -2/Research | Garrison activated, responded to threat 7963 | -2/Research | System corruption reached 10% 8061 | -2/Research | Spotted B-90 Cyclops 8084 | -2/Research | Found Prototype Processor 8084 | -2/Research | Identified Exp. Core Analyzer 8560 | -2/Research | First assault squad dispatched 8592 | -2/Research | Discovered new exit (range 6) 8598 | -2/Research | Identified exit to Testing 8674 | -2/Research | Lost 3 parts (3u) 8710 | -2/Research | Destroyed 8 combat bots 9102 | -2/Research | Found Prototype Device 9102 | -2/Research | Identified Exp. Shield Generator 9472 | -2/Research | Destroyed 14 combat bots 9970 | -2/Research | High security lockdown imminent 9991 | -2/Research | Destroyed 17 combat bots 10033 | -2/Research | Lost 6 parts (2p2n1u1w) 10050 | -2/Research | High security lockdown engaged 10065 | -2/Research | Discovered new exit (range 11) 10072 | -2/Research | Core integrity fell below 50% 10072 | -2/Research | Identified exit to Access 10072 | -2/Research | Entered Access 10072 | -1/Access | Evolved 2 slots: Propulsion x1, Utility x1 10164 | -1/Access | Spotted B-99 Colossus 10183 | -1/Access | Core integrity fell below 50% 10200 | -1/Access | Core integrity fell below 20% 10211 | -1/Access | Destroyed by S-43 Plague with Heavy Machine Gun Last Messages --------------- 10182_ Penetrated by Slug. 10182_ Slug penetrates W-44 Eye. 10182_ Penetrated by Slug. 10200_ Slug penetrates Wall. 10200_ Penetrated by Slug. 10200_ Slug penetrates Longscan Aggregator. 10200_ K-01 Serf destroyed. 10200_ Penetrated by Slug. 10201_ Acquired Wheel. 10203_ Exp. Core Analyzer destroyed. 10206_ U-05 Engineer destroyed. 10206_ Slug penetrates Longscan Aggregator. 10206_ Penetrated by Slug. 10206_ Wheel destroyed. 10208_ U-05 Engineer builds a Wall. 10208_ CPS Tube destroyed. 10208_ Longscan Aggregator disabled. 10209_ Adv. Signal Interpreter destroyed. 10210_ Slug penetrates Wall. 10210_ Penetrated by Slug. Map ----- +----------------------------------------------------+ | ## # """ #????????????????????? | | ## # """ #????????????????????? | | ## # " #????????????????????? | | ##"#######"##########????????????????##### | | "%" % ###################### | | " | | % | | "" % | | ""T"" | | "" "" ^ | | ###################### | | ######## "????????????????????# ### | | ???????# #??????????????????# #?? | | ???????# BB#############?????# #?? | | ???????# !#BB #?????# #?? | | ???????# = #?"% = ####### #? | | ???????# h"!% # #? | | ???????# ### "" * # # | | ???????# #?# "" !=# # | | ???????? #?# """""" *%/h + | | ????????? ######## ######?# """"" p # # | | ?????????????????# ???????# "" s p# # | | ?????????????????# ???????# "" !# #? | | ?????????????????? ???????# sss # #? | | ?????????????????# ######## # #?? | | ??????????????+ C @/ # #?? | | ?????????????????##+#################### #?? | | ???????????????????????????????????????# #?? | | ???????????????????????????????????????# #?? | | ???????????????????????????????????????# #?? | | ???????????????????????????????????????# ?? | | ???????????????????????????????????????# ? | | ???????????????????????????????????????# ? | | ???????????????????????????????????????# ?? | | ???????????????????????????????????????? ? | | ?????????????????????????????????????????? ?? | | ?????????????????????????????????????????????????? | | ?????????????????????????????????????????????????? | | ?????????????????????????????????????????????????? | | ?????????????????????????????????????????????????? | | ?????????????????????????????????????????????????? | | ?????????????????????????????????????????????????? | | ?????????????????????????????????????????????????? | | ?????????????????????????????????????????????????? | | ?????????????????????????????????????????????????? | | ?????????????????????????????????????????????????? | | ?????????????????????????????????????????????????? | | ?????????????????????????????????????????????????? | | ?????????????????????????????????????????????????? | | ?????????????????????????????????????????????????? | +----------------------------------------------------+ Best States ------------- Heat Dissipation 156 Coolant Potential 100 Energy Generation 53 Energy Capacity 1440 Matter Stores 300 Matter Capacity 300 Sight Range 24 Terrain Scan Range 16 Terrain Scan Density 210 Jamming Range 16 Cloak Strength 5 Additional Mass Support 9 Base Temperature (-) 200 Armor Coverage 1200 Resistance: KI 25 Resistance: TH 30 Resistance: EM 20 Core Shielding 30 Phase Shifting 5 Evasion (%) 76 Targeting Accuracy 5 Melee Accuracy 12 Core Analysis 8 Armor Integrity Analysis 30 Recoil Reduction 4 Particle Charging 25 Offensive Hacking 12 Defensive Hacking 16 Item Schematics ----------------- None Robot Schematics ------------------ None Fabricated ------------ Nothing Repaired ---------- Nothing Alien Tech Used ----------------- None Achievements -------------- None Challenges ------------ None Game ------ Seed GrenadeTeleporterPower Manual? 0 Play Time 03:28:46 Cumulative 197.2 hours Start 2025.05.25 @ 15:35:41 End 2025.05.25 @ 19:29:53 Sessions 1 Manual Loads 0 Difficulty Rogue Special Mode None Game No. 217 Rogue 217 Adventurer 0 Explorer 0 Win Type - Total 1 Types 1/0/0/0/0/0/0/0/0/0 Lore% 73 Gallery% 71 Achievement% 62 Wizard Run 0 Options --------- Layout 1 ASCII 0 Keyboard 0 Movement Numpad Keybinds 0 Fullscreen 1 Font 24/Smallcaps Map View 50x35 Zoom Use 0% Tactical HUD 1 Map Filters NONE Filters NONE Steam 1 RUN: cee42eca-e7c3-4ede-bb6c-d7a0e78e8431